Workbook

Sheet МСУ
E6: субъект | F6: муниципал | G6: кол-во | H6: ранг | K6: субъект | L6: муниципал | M6: кол-во
E7: Краснодарский край | F7: Ленинградский муниципальный район | G7: 11 | H7: =MAX(ISNUMBER(SEARCH({"район";"город";"образований"},F7))*({3;2;1}/1%%+G7%)) -> 30000.11 | K7: Московская область | L7: Ногинский муниципальный район | M7: 7
E8: Московская область | F8: Ногинский муниципальный район | G8: 7 | H8: =MAX(ISNUMBER(SEARCH({"район";"город";"образований"},F8))*({3;2;1}/1%%+G8%)) -> 30000.07 | K8: Московская область | L8: Сергиево-Посадский муниципальный район | M8: 7
E9: Московская область | F9: Сергиево-Посадский муниципальный район | G9: 7 | H9: =MAX(ISNUMBER(SEARCH({"район";"город";"образований"},F9))*({3;2;1}/1%%+G9%)) -> 30000.07 | K9: Московская область | L9: Щёлковский муниципальный район | M9: 6
E10: Саратовская область | F10: Энгельсский муниципальный район | G10: 7 | H10: =MAX(ISNUMBER(SEARCH({"район";"город";"образований"},F10))*({3;2;1}/1%%+G10%)) -> 30000.07 | K10: Московская область | L10: Каширский муниципальный район | M10: 5
E11: Московская область | F11: Щёлковский муниципальный район | G11: 6 | H11: =MAX(ISNUMBER(SEARCH({"район";"город";"образований"},F11))*({3;2;1}/1%%+G11%)) -> 30000.06 | K11: Московская область | L11: Красногорский муниципальный район | M11: 5
E12: Липецкая область | F12: Лебедянский муниципальный район | G12: 5 | H12: =MAX(ISNUMBER(SEARCH({"район";"город";"образований"},F12))*({3;2;1}/1%%+G12%)) -> 30000.05 | K12: Московская область | L12: Шатурский муниципальный район | M12: 5
E13: Московская область | F13: Каширский муниципальный район | G13: 5 | H13: =MAX(ISNUMBER(SEARCH({"район";"город";"образований"},F13))*({3;2;1}/1%%+G13%)) -> 30000.05 | K13: Московская область | L13: Истринский муниципальный район | M13: 4
E14: Московская область | F14: Красногорский муниципальный район | G14: 5 | H14: =MAX(ISNUMBER(SEARCH({"район";"город";"образований"},F14))*({3;2;1}/1%%+G14%)) -> 30000.05 | K14: Московская область | L14: Раменский муниципальный район | M14: 4
E15: Московская область | F15: Шатурский муниципальный район | G15: 5 | H15: =MAX(ISNUMBER(SEARCH({"район";"город";"образований"},F15))*({3;2;1}/1%%+G15%)) -> 30000.05 | K15: Московская область | L15: Рузский муниципальный район | M15: 4
E16: Республика Алтай | F16: Улаганский муниципальный район | G16: 5 | H16: =MAX(ISNUMBER(SEARCH({"район";"город";"образований"},F16))*({3;2;1}/1%%+G16%)) -> 30000.05 | K16: Московская область | L16: Воскресенский муниципальный район | M16: 3
E17: Республика Ингушетия | F17: Муниципальный район Назрановский | G17: 5 | H17: =MAX(ISNUMBER(SEARCH({"район";"город";"образований"},F17))*({3;2;1}/1%%+G17%)) -> 30000.05 | K17: Московская область | L17: Орехово-Зуевский муниципальный район | M17: 3
E18: Астраханская область | F18: Муниципальный район Володарский | G18: 4 | H18: =MAX(ISNUMBER(SEARCH({"район";"город";"образований"},F18))*({3;2;1}/1%%+G18%)) -> 30000.04 | K18: Московская область | L18: Солнечногорский муниципальный район | M18: 3
E19: Астраханская область | F19: Муниципальный район Приволжский | G19: 4 | H19: =MAX(ISNUMBER(SEARCH({"район";"город";"образований"},F19))*({3;2;1}/1%%+G19%)) -> 30000.04 | K19: Московская область | L19: Клинский муниципальный район | M19: 2
E20: Забайкальский край | F20: Муниципальный район Александрово-Заводский | G20: 4 | H20: =MAX(ISNUMBER(SEARCH({"район";"город";"образований"},F20))*({3;2;1}/1%%+G20%)) -> 30000.04 | K20: Московская область | L20: Павлово-Посадский муниципальный район | M20: 2
E21: Краснодарский край | F21: Туапсинский муниципальный район | G21: 4 | H21: =MAX(ISNUMBER(SEARCH({"район";"город";"образований"},F21))*({3;2;1}/1%%+G21%)) -> 30000.04 | K21: Московская область | L21: Чеховский муниципальный район | M21: 2
E22: Московская область | F22: Истринский муниципальный район | G22: 4 | H22: =MAX(ISNUMBER(SEARCH({"район";"город";"образований"},F22))*({3;2;1}/1%%+G22%)) -> 30000.04 | K22: Московская область | L22: Зарайский муниципальный район | M22: 1
E23: Московская область | F23: Раменский муниципальный район | G23: 4 | H23: =MAX(ISNUMBER(SEARCH({"район";"город";"образований"},F23))*({3;2;1}/1%%+G23%)) -> 30000.04 | K23: Московская область | L23: Коломенский муниципальный район | M23: 1
E24: Московская область | F24: Рузский муниципальный район | G24: 4 | H24: =MAX(ISNUMBER(SEARCH({"район";"город";"образований"},F24))*({3;2;1}/1%%+G24%)) -> 30000.04 | K24: Московская область | L24: Городской округ Дзержинский | M24: 6
E25: Сахалинская область | F25: Углегорский муниципальный район | G25: 4 | H25: =MAX(ISNUMBER(SEARCH({"район";"город";"образований"},F25))*({3;2;1}/1%%+G25%)) -> 30000.04 | K25: Московская область | L25: Городской округ Железнодорожный | M25: 5
E26: Тверская область | F26: Вышневолоцкий муниципальный район | G26: 4 | H26: =MAX(ISNUMBER(SEARCH({"район";"город";"образований"},F26))*({3;2;1}/1%%+G26%)) -> 30000.04 | K26: Московская область | L26: Городской округ Королёв | M26: 5
E27: Кировская область | F27: Верхнекамский муниципальный район | G27: 3 | H27: =MAX(ISNUMBER(SEARCH({"район";"город";"образований"},F27))*({3;2;1}/1%%+G27%)) -> 30000.03 | K27: Московская область | L27: Городской округ Орехово-Зуево | M27: 4
E28: Московская область | F28: Воскресенский муниципальный район | G28: 3 | H28: =MAX(ISNUMBER(SEARCH({"район";"город";"образований"},F28))*({3;2;1}/1%%+G28%)) -> 30000.03 | K28: Московская область | L28: Городской округ Электрогорск | M28: 4
E29: Московская область | F29: Орехово-Зуевский муниципальный район | G29: 3 | H29: =MAX(ISNUMBER(SEARCH({"район";"город";"образований"},F29))*({3;2;1}/1%%+G29%)) -> 30000.03 | K29: Московская область | L29: Городской округ Лосино-Петровский | M29: 4
E30: Московская область | F30: Солнечногорский муниципальный район | G30: 3 | H30: =MAX(ISNUMBER(SEARCH({"район";"город";"образований"},F30))*({3;2;1}/1%%+G30%)) -> 30000.03 | K30: Московская область | L30: Городской округ Электросталь | M30: 3
E31: Новгородская область | F31: Новгородский муниципальный район | G31: 3 | H31: =MAX(ISNUMBER(SEARCH({"район";"город";"образований"},F31))*({3;2;1}/1%%+G31%)) -> 30000.03 | K31: Московская область | L31: Городской округ Лыткарино | M31: 2
E32: Пермский край | F32: Очерский муниципальный район | G32: 3 | H32: =MAX(ISNUMBER(SEARCH({"район";"город";"образований"},F32))*({3;2;1}/1%%+G32%)) -> 30000.03 | K32: Московская область | L32: Городской округ Жуковский | M32: 1
E33: Республика Башкортостан | F33: Муниципальный район Благовещенский район | G33: 3 | H33: =MAX(ISNUMBER(SEARCH({"район";"город";"образований"},F33))*({3;2;1}/1%%+G33%)) -> 30000.03 | K33: Московская область | L33: Городской округ Красноармейск | M33: 1
E34: Республика Ингушетия | F34: Муниципальный район Малгобекский | G34: 3 | H34: =MAX(ISNUMBER(SEARCH({"район";"город";"образований"},F34))*({3;2;1}/1%%+G34%)) -> 30000.03 | K34: Московская область ДОБАВЛ | L34: 12 образований | M34: 28
E35: Республика Карелия | F35: Кондопожский муниципальный район | G35: 3 | H35: =MAX(ISNUMBER(SEARCH({"район";"город";"образований"},F35))*({3;2;1}/1%%+G35%)) -> 30000.03
E36: Республика Карелия | F36: Пряжинский муниципальный район | G36: 3 | H36: =MAX(ISNUMBER(SEARCH({"район";"город";"образований"},F36))*({3;2;1}/1%%+G36%)) -> 30000.03
E37: Республика Коми | F37: Муниципальный район Корткеросский | G37: 3 | H37: =MAX(ISNUMBER(SEARCH({"район";"город";"образований"},F37))*({3;2;1}/1%%+G37%)) -> 30000.03
E38: Республика Коми | F38: Муниципальный район Печора | G38: 3 | H38: =MAX(ISNUMBER(SEARCH({"район";"город";"образований"},F38))*({3;2;1}/1%%+G38%)) -> 30000.03
E39: Саратовская область | F39: Вольский муниципальный район | G39: 3 | H39: =MAX(ISNUMBER(SEARCH({"район";"город";"образований"},F39))*({3;2;1}/1%%+G39%)) -> 30000.03
E40: Тверская область | F40: Конаковский муниципальный район | G40: 3 | H40: =MAX(ISNUMBER(SEARCH({"район";"город";"образований"},F40))*({3;2;1}/1%%+G40%)) -> 30000.03
E41: Тульская область | F41: Узловский муниципальный район | G41: 3 | H41: =MAX(ISNUMBER(SEARCH({"район";"город";"образований"},F41))*({3;2;1}/1%%+G41%)) -> 30000.03
E42: Хабаровский край | F42: Солнечный муниципальный район | G42: 3 | H42: =MAX(ISNUMBER(SEARCH({"район";"город";"образований"},F42))*({3;2;1}/1%%+G42%)) -> 30000.03
E43: Астраханская область | F43: Муниципальный район Икрянинский | G43: 2 | H43: =MAX(ISNUMBER(SEARCH({"район";"город";"образований"},F43))*({3;2;1}/1%%+G43%)) -> 30000.02
E44: Вологодская область | F44: Кирилловский муниципальный район | G44: 2 | H44: =MAX(ISNUMBER(SEARCH({"район";"город";"образований"},F44))*({3;2;1}/1%%+G44%)) -> 30000.02
E45: Забайкальский край | F45: Муниципальный район Каларский | G45: 2 | H45: =MAX(ISNUMBER(SEARCH({"район";"город";"образований"},F45))*({3;2;1}/1%%+G45%)) -> 30000.02
E46: Карачаево-Черкесская Республика | F46: Прикубанский муниципальный район | G46: 2 | H46: =MAX(ISNUMBER(SEARCH({"район";"город";"образований"},F46))*({3;2;1}/1%%+G46%)) -> 30000.02
E47: Карачаево-Черкесская Республика | F47: Усть-Джегутинский муниципальный район | G47: 2 | H47: =MAX(ISNUMBER(SEARCH({"район";"город";"образований"},F47))*({3;2;1}/1%%+G47%)) -> 30000.02
E48: Кемеровская область | F48: Муниципальный район Беловский | G48: 2 | H48: =MAX(ISNUMBER(SEARCH({"район";"город";"образований"},F48))*({3;2;1}/1%%+G48%)) -> 30000.02
E49: Кировская область | F49: Немский муниципальный район | G49: 2 | H49: =MAX(ISNUMBER(SEARCH({"район";"город";"образований"},F49))*({3;2;1}/1%%+G49%)) -> 30000.02
E50: Курганская область | F50: Муниципальный район Петуховский | G50: 2 | H50: =MAX(ISNUMBER(SEARCH({"район";"город";"образований"},F50))*({3;2;1}/1%%+G50%)) -> 30000.02
E51: Курская область | F51: Глушковский муниципальный район | G51: 2 | H51: =MAX(ISNUMBER(SEARCH({"район";"город";"образований"},F51))*({3;2;1}/1%%+G51%)) -> 30000.02
E52: Курская область | F52: Дмитриевский муниципальный район | G52: 2 | H52: =MAX(ISNUMBER(SEARCH({"район";"город";"образований"},F52))*({3;2;1}/1%%+G52%)) -> 30000.02
E53: Липецкая область | F53: Задонский муниципальный район | G53: 2 | H53: =MAX(ISNUMBER(SEARCH({"район";"город";"образований"},F53))*({3;2;1}/1%%+G53%)) -> 30000.02
E54: Московская область | F54: Клинский муниципальный район | G54: 2 | H54: =MAX(ISNUMBER(SEARCH({"район";"город";"образований"},F54))*({3;2;1}/1%%+G54%)) -> 30000.02
E55: Московская область | F55: Павлово-Посадский муниципальный район | G55: 2 | H55: =MAX(ISNUMBER(SEARCH({"район";"город";"образований"},F55))*({3;2;1}/1%%+G55%)) -> 30000.02
E56: Московская область | F56: Чеховский муниципальный район | G56: 2 | H56: =MAX(ISNUMBER(SEARCH({"район";"город";"образований"},F56))*({3;2;1}/1%%+G56%)) -> 30000.02
E57: Мурманская область | F57: Кандалакшский муниципальный район | G57: 2 | H57: =MAX(ISNUMBER(SEARCH({"район";"город";"образований"},F57))*({3;2;1}/1%%+G57%)) -> 30000.02
E58: Нижегородская область | F58: Лукояновский муниципальный район | G58: 2 | H58: =MAX(ISNUMBER(SEARCH({"район";"город";"образований"},F58))*({3;2;1}/1%%+G58%)) -> 30000.02
E59: Нижегородская область | F59: Починковский муниципальный район | G59: 2 | H59: =MAX(ISNUMBER(SEARCH({"район";"город";"образований"},F59))*({3;2;1}/1%%+G59%)) -> 30000.02
E60: Нижегородская область | F60: Шатковский муниципальный район | G60: 2 | H60: =MAX(ISNUMBER(SEARCH({"район";"город";"образований"},F60))*({3;2;1}/1%%+G60%)) -> 30000.02
E61: Новосибирская область | F61: Кыштовский муниципальный район | G61: 2 | H61: =MAX(ISNUMBER(SEARCH({"район";"город";"образований"},F61))*({3;2;1}/1%%+G61%)) -> 30000.02
E62: Пензенская область | F62: Городищенский муниципальный район | G62: 2 | H62: =MAX(ISNUMBER(SEARCH({"район";"город";"образований"},F62))*({3;2;1}/1%%+G62%)) -> 30000.02
E63: Республика Башкортостан | F63: Муниципальный район Ишимбайский район | G63: 2 | H63: =MAX(ISNUMBER(SEARCH({"район";"город";"образований"},F63))*({3;2;1}/1%%+G63%)) -> 30000.02
E64: Республика Башкортостан | F64: Муниципальный район Туймазинский район | G64: 2 | H64: =MAX(ISNUMBER(SEARCH({"район";"город";"образований"},F64))*({3;2;1}/1%%+G64%)) -> 30000.02
E65: Республика Бурятия | F65: Муниципальный район Кяхтинский | G65: 2 | H65: =MAX(ISNUMBER(SEARCH({"район";"город";"образований"},F65))*({3;2;1}/1%%+G65%)) -> 30000.02
E66: Республика Карелия | F66: Лахденпохский муниципальный район | G66: 2 | H66: =MAX(ISNUMBER(SEARCH({"район";"город";"образований"},F66))*({3;2;1}/1%%+G66%)) -> 30000.02
E67: Республика Карелия | F67: Сортавальский муниципальный район | G67: 2 | H67: =MAX(ISNUMBER(SEARCH({"район";"город";"образований"},F67))*({3;2;1}/1%%+G67%)) -> 30000.02
E68: Республика Коми | F68: Муниципальный район Сосногорск | G68: 2 | H68: =MAX(ISNUMBER(SEARCH({"район";"город";"образований"},F68))*({3;2;1}/1%%+G68%)) -> 30000.02
E69: Республика Мордовия | F69: Краснослободский муниципальный район | G69: 2 | H69: =MAX(ISNUMBER(SEARCH({"район";"город";"образований"},F69))*({3;2;1}/1%%+G69%)) -> 30000.02
E70: Республика Мордовия | F70: Рузаевский муниципальный район | G70: 2 | H70: =MAX(ISNUMBER(SEARCH({"район";"город";"образований"},F70))*({3;2;1}/1%%+G70%)) -> 30000.02
E71: Республика Саха (Якутия) | F71: Алданский муниципальный район | G71: 2 | H71: =MAX(ISNUMBER(SEARCH({"район";"город";"образований"},F71))*({3;2;1}/1%%+G71%)) -> 30000.02
E72: Республика Саха (Якутия) | F72: Нерюнгринский муниципальный район | G72: 2 | H72: =MAX(ISNUMBER(SEARCH({"район";"город";"образований"},F72))*({3;2;1}/1%%+G72%)) -> 30000.02
E73: Ростовская область | F73: Миллеровский муниципальный район | G73: 2 | H73: =MAX(ISNUMBER(SEARCH({"район";"город";"образований"},F73))*({3;2;1}/1%%+G73%)) -> 30000.02
E74: Ростовская область | F74: Шолоховский муниципальный район | G74: 2 | H74: =MAX(ISNUMBER(SEARCH({"район";"город";"образований"},F74))*({3;2;1}/1%%+G74%)) -> 30000.02
E75: Тульская область | F75: Алексинский муниципальный район | G75: 2 | H75: =MAX(ISNUMBER(SEARCH({"район";"город";"образований"},F75))*({3;2;1}/1%%+G75%)) -> 30000.02
E76: Тульская область | F76: Киреевский муниципальный район | G76: 2 | H76: =MAX(ISNUMBER(SEARCH({"район";"город";"образований"},F76))*({3;2;1}/1%%+G76%)) -> 30000.02
E77: Тульская область | F77: Тепло-Огаревский муниципальный район | G77: 2 | H77: =MAX(ISNUMBER(SEARCH({"район";"город";"образований"},F77))*({3;2;1}/1%%+G77%)) -> 30000.02
E78: Тюменская область | F78: Тюменский муниципальный район | G78: 2 | H78: =MAX(ISNUMBER(SEARCH({"район";"город";"образований"},F78))*({3;2;1}/1%%+G78%)) -> 30000.02
E79: Удмуртская Республика | F79: Алнашский муниципальный район | G79: 2 | H79: =MAX(ISNUMBER(SEARCH({"район";"город";"образований"},F79))*({3;2;1}/1%%+G79%)) -> 30000.02
E80: Хабаровский край | F80: Советско-Гаванский муниципальный район | G80: 2 | H80: =MAX(ISNUMBER(SEARCH({"район";"город";"образований"},F80))*({3;2;1}/1%%+G80%)) -> 30000.02
E81: Ханты-Мансийский автономный округ - Югра | F81: Сургутский муниципальный район | G81: 2 | H81: =MAX(ISNUMBER(SEARCH({"район";"город";"образований"},F81))*({3;2;1}/1%%+G81%)) -> 30000.02
E82: Амурская область | F82: Зейский муниципальный район | G82: 1 | H82: =MAX(ISNUMBER(SEARCH({"район";"город";"образований"},F82))*({3;2;1}/1%%+G82%)) -> 30000.01
E83: Амурская область | F83: Серышевский муниципальный район | G83: 1 | H83: =MAX(ISNUMBER(SEARCH({"район";"город";"образований"},F83))*({3;2;1}/1%%+G83%)) -> 30000.01
E84: Архангельская область | F84: Муниципальный район Котласский | G84: 1 | H84: =MAX(ISNUMBER(SEARCH({"район";"город";"образований"},F84))*({3;2;1}/1%%+G84%)) -> 30000.01
E85: Архангельская область | F85: Муниципальный район Ленский | G85: 1 | H85: =MAX(ISNUMBER(SEARCH({"район";"город";"образований"},F85))*({3;2;1}/1%%+G85%)) -> 30000.01
E86: Архангельская область | F86: Муниципальный район Няндомский | G86: 1 | H86: =MAX(ISNUMBER(SEARCH({"район";"город";"образований"},F86))*({3;2;1}/1%%+G86%)) -> 30000.01
E87: Архангельская область | F87: Муниципальный район Устьянский | G87: 1 | H87: =MAX(ISNUMBER(SEARCH({"район";"город";"образований"},F87))*({3;2;1}/1%%+G87%)) -> 30000.01
E88: Брянская область | F88: Брасовский муниципальный район | G88: 1 | H88: =MAX(ISNUMBER(SEARCH({"район";"город";"образований"},F88))*({3;2;1}/1%%+G88%)) -> 30000.01
E89: Брянская область | F89: Погарский муниципальный район | G89: 1 | H89: =MAX(ISNUMBER(SEARCH({"район";"город";"образований"},F89))*({3;2;1}/1%%+G89%)) -> 30000.01
E90: Брянская область | F90: Трубчевский муниципальный район | G90: 1 | H90: =MAX(ISNUMBER(SEARCH({"район";"город";"образований"},F90))*({3;2;1}/1%%+G90%)) -> 30000.01
E91: Вологодская область | F91: Белозерский муниципальный район | G91: 1 | H91: =MAX(ISNUMBER(SEARCH({"район";"город";"образований"},F91))*({3;2;1}/1%%+G91%)) -> 30000.01
E92: Вологодская область | F92: Грязовецкий муниципальный район | G92: 1 | H92: =MAX(ISNUMBER(SEARCH({"район";"город";"образований"},F92))*({3;2;1}/1%%+G92%)) -> 30000.01
E93: Забайкальский край | F93: Муниципальный район Шилкинский | G93: 1 | H93: =MAX(ISNUMBER(SEARCH({"район";"город";"образований"},F93))*({3;2;1}/1%%+G93%)) -> 30000.01
E94: Иркутская область | F94: Казачинско-Ленский муниципальный район | G94: 1 | H94: =MAX(ISNUMBER(SEARCH({"район";"город";"образований"},F94))*({3;2;1}/1%%+G94%)) -> 30000.01
E95: Иркутская область | F95: Нижнеилимский муниципальный район | G95: 1 | H95: =MAX(ISNUMBER(SEARCH({"район";"город";"образований"},F95))*({3;2;1}/1%%+G95%)) -> 30000.01
E96: Иркутская область | F96: Черемховское районное муниципальное образование | G96: 1 | H96: =MAX(ISNUMBER(SEARCH({"район";"город";"образований"},F96))*({3;2;1}/1%%+G96%)) -> 30000.01
E97: Карачаево-Черкесская Республика | F97: Абазинский муниципальный район | G97: 1 | H97: =MAX(ISNUMBER(SEARCH({"район";"город";"образований"},F97))*({3;2;1}/1%%+G97%)) -> 30000.01
E98: Карачаево-Черкесская Республика | F98: Урупский муниципальный район | G98: 1 | H98: =MAX(ISNUMBER(SEARCH({"район";"город";"образований"},F98))*({3;2;1}/1%%+G98%)) -> 30000.01
E99: Кемеровская область | F99: Муниципальный район Мариинский | G99: 1 | H99: =MAX(ISNUMBER(SEARCH({"район";"город";"образований"},F99))*({3;2;1}/1%%+G99%)) -> 30000.01
E100: Кировская область | F100: Омутнинский муниципальный район | G100: 1 | H100: =MAX(ISNUMBER(SEARCH({"район";"город";"образований"},F100))*({3;2;1}/1%%+G100%)) -> 30000.01
E101: Кировская область | F101: Слободской муниципальный район | G101: 1 | H101: =MAX(ISNUMBER(SEARCH({"район";"город";"образований"},F101))*({3;2;1}/1%%+G101%)) -> 30000.01
E102: Костромская область | F102: Межевской муниципальный район | G102: 1 | H102: =MAX(ISNUMBER(SEARCH({"район";"город";"образований"},F102))*({3;2;1}/1%%+G102%)) -> 30000.01
E103: Костромская область | F103: Муниципальный район город Нерехта и Нерехтский район | G103: 1 | H103: =MAX(ISNUMBER(SEARCH({"район";"город";"образований"},F103))*({3;2;1}/1%%+G103%)) -> 30000.01
E104: Краснодарский край | F104: Абинский муниципальный район | G104: 1 | H104: =MAX(ISNUMBER(SEARCH({"район";"город";"образований"},F104))*({3;2;1}/1%%+G104%)) -> 30000.01
E105: Краснодарский край | F105: Усть-Лабинский муниципальный район | G105: 1 | H105: =MAX(ISNUMBER(SEARCH({"район";"город";"образований"},F105))*({3;2;1}/1%%+G105%)) -> 30000.01
E106: Курганская область | F106: Муниципальный район Шадринский | G106: 1 | H106: =MAX(ISNUMBER(SEARCH({"район";"город";"образований"},F106))*({3;2;1}/1%%+G106%)) -> 30000.01
E107: Курская область | F107: Касторенский муниципальный район | G107: 1 | H107: =MAX(ISNUMBER(SEARCH({"район";"город";"образований"},F107))*({3;2;1}/1%%+G107%)) -> 30000.01
E108: Липецкая область | F108: Данковский муниципальный район | G108: 1 | H108: =MAX(ISNUMBER(SEARCH({"район";"город";"образований"},F108))*({3;2;1}/1%%+G108%)) -> 30000.01
E109: Липецкая область | F109: Елецкий муниципальный район | G109: 1 | H109: =MAX(ISNUMBER(SEARCH({"район";"город";"образований"},F109))*({3;2;1}/1%%+G109%)) -> 30000.01
E110: Липецкая область | F110: Краснинский муниципальный район | G110: 1 | H110: =MAX(ISNUMBER(SEARCH({"район";"город";"образований"},F110))*({3;2;1}/1%%+G110%)) -> 30000.01
E111: Липецкая область | F111: Липецкий муниципальный район | G111: 1 | H111: =MAX(ISNUMBER(SEARCH({"район";"город";"образований"},F111))*({3;2;1}/1%%+G111%)) -> 30000.01
E112: Липецкая область | F112: Хлевенский муниципальный район | G112: 1 | H112: =MAX(ISNUMBER(SEARCH({"район";"город";"образований"},F112))*({3;2;1}/1%%+G112%)) -> 30000.01
E113: Московская область | F113: Зарайский муниципальный район | G113: 1 | H113: =MAX(ISNUMBER(SEARCH({"район";"город";"образований"},F113))*({3;2;1}/1%%+G113%)) -> 30000.01
E114: Московская область | F114: Коломенский муниципальный район | G114: 1 | H114: =MAX(ISNUMBER(SEARCH({"район";"город";"образований"},F114))*({3;2;1}/1%%+G114%)) -> 30000.01
E115: Мурманская область | F115: Кольский муниципальный район | G115: 1 | H115: =MAX(ISNUMBER(SEARCH({"район";"город";"образований"},F115))*({3;2;1}/1%%+G115%)) -> 30000.01
E116: Нижегородская область | F116: Ардатовский муниципальный район | G116: 1 | H116: =MAX(ISNUMBER(SEARCH({"район";"город";"образований"},F116))*({3;2;1}/1%%+G116%)) -> 30000.01
E117: Нижегородская область | F117: Балахнинский муниципальный район | G117: 1 | H117: =MAX(ISNUMBER(SEARCH({"район";"город";"образований"},F117))*({3;2;1}/1%%+G117%)) -> 30000.01
E118: Нижегородская область | F118: Вадский муниципальный район | G118: 1 | H118: =MAX(ISNUMBER(SEARCH({"район";"город";"образований"},F118))*({3;2;1}/1%%+G118%)) -> 30000.01
E119: Нижегородская область | F119: Кулебакский муниципальный район | G119: 1 | H119: =MAX(ISNUMBER(SEARCH({"район";"город";"образований"},F119))*({3;2;1}/1%%+G119%)) -> 30000.01
E120: Нижегородская область | F120: Тонкинский муниципальный район | G120: 1 | H120: =MAX(ISNUMBER(SEARCH({"район";"город";"образований"},F120))*({3;2;1}/1%%+G120%)) -> 30000.01
E121: Нижегородская область | F121: Тоншаевский муниципальный район | G121: 1 | H121: =MAX(ISNUMBER(SEARCH({"район";"город";"образований"},F121))*({3;2;1}/1%%+G121%)) -> 30000.01
E122: Новгородская область | F122: Маловишерский муниципальный район | G122: 1 | H122: =MAX(ISNUMBER(SEARCH({"район";"город";"образований"},F122))*({3;2;1}/1%%+G122%)) -> 30000.01
E123: Новгородская область | F123: Мошенской муниципальный район | G123: 1 | H123: =MAX(ISNUMBER(SEARCH({"район";"город";"образований"},F123))*({3;2;1}/1%%+G123%)) -> 30000.01
E124: Новгородская область | F124: Холмский муниципальный район | G124: 1 | H124: =MAX(ISNUMBER(SEARCH({"район";"город";"образований"},F124))*({3;2;1}/1%%+G124%)) -> 30000.01
E125: Новосибирская область | F125: Венгеровский муниципальный район | G125: 1 | H125: =MAX(ISNUMBER(SEARCH({"район";"город";"образований"},F125))*({3;2;1}/1%%+G125%)) -> 30000.01
E126: Новосибирская область | F126: Каргатский муниципальный район | G126: 1 | H126: =MAX(ISNUMBER(SEARCH({"район";"город";"образований"},F126))*({3;2;1}/1%%+G126%)) -> 30000.01
E127: Новосибирская область | F127: Тогучинский муниципальный район | G127: 1 | H127: =MAX(ISNUMBER(SEARCH({"район";"город";"образований"},F127))*({3;2;1}/1%%+G127%)) -> 30000.01
E128: Новосибирская область | F128: Черепановский муниципальный район | G128: 1 | H128: =MAX(ISNUMBER(SEARCH({"район";"город";"образований"},F128))*({3;2;1}/1%%+G128%)) -> 30000.01
E129: Орловская область | F129: Краснозоренский муниципальный район | G129: 1 | H129: =MAX(ISNUMBER(SEARCH({"район";"город";"образований"},F129))*({3;2;1}/1%%+G129%)) -> 30000.01
E130: Пензенская область | F130: Нижнеломовский муниципальный район | G130: 1 | H130: =MAX(ISNUMBER(SEARCH({"район";"город";"образований"},F130))*({3;2;1}/1%%+G130%)) -> 30000.01
E131: Пермский край | F131: Березовский муниципальный район | G131: 1 | H131: =MAX(ISNUMBER(SEARCH({"район";"город";"образований"},F131))*({3;2;1}/1%%+G131%)) -> 30000.01
E132: Пермский край | F132: Верещагинский муниципальный район | G132: 1 | H132: =MAX(ISNUMBER(SEARCH({"район";"город";"образований"},F132))*({3;2;1}/1%%+G132%)) -> 30000.01
E133: Пермский край | F133: Добрянский муниципальный район | G133: 1 | H133: =MAX(ISNUMBER(SEARCH({"район";"город";"образований"},F133))*({3;2;1}/1%%+G133%)) -> 30000.01
E134: Пермский край | F134: Чусовской муниципальный район | G134: 1 | H134: =MAX(ISNUMBER(SEARCH({"район";"город";"образований"},F134))*({3;2;1}/1%%+G134%)) -> 30000.01
E135: Республика Башкортостан | F135: Муниципальный район Альшеевский район | G135: 1 | H135: =MAX(ISNUMBER(SEARCH({"район";"город";"образований"},F135))*({3;2;1}/1%%+G135%)) -> 30000.01
E136: Республика Башкортостан | F136: Муниципальный район Ермекеевский район | G136: 1 | H136: =MAX(ISNUMBER(SEARCH({"район";"город";"образований"},F136))*({3;2;1}/1%%+G136%)) -> 30000.01
E137: Республика Башкортостан | F137: Муниципальный район Кармаскалинский район | G137: 1 | H137: =MAX(ISNUMBER(SEARCH({"район";"город";"образований"},F137))*({3;2;1}/1%%+G137%)) -> 30000.01
E138: Республика Башкортостан | F138: Муниципальный район Федоровский район | G138: 1 | H138: =MAX(ISNUMBER(SEARCH({"район";"город";"образований"},F138))*({3;2;1}/1%%+G138%)) -> 30000.01
E139: Республика Бурятия | F139: Муниципальный район Бичурский | G139: 1 | H139: =MAX(ISNUMBER(SEARCH({"район";"город";"образований"},F139))*({3;2;1}/1%%+G139%)) -> 30000.01
E140: Республика Карелия | F140: Кемский муниципальный район | G140: 1 | H140: =MAX(ISNUMBER(SEARCH({"район";"город";"образований"},F140))*({3;2;1}/1%%+G140%)) -> 30000.01
E141: Республика Карелия | F141: Питкярантский муниципальный район | G141: 1 | H141: =MAX(ISNUMBER(SEARCH({"район";"город";"образований"},F141))*({3;2;1}/1%%+G141%)) -> 30000.01
E142: Республика Карелия | F142: Пудожский муниципальный район | G142: 1 | H142: =MAX(ISNUMBER(SEARCH({"район";"город";"образований"},F142))*({3;2;1}/1%%+G142%)) -> 30000.01
E143: Республика Коми | F143: Муниципальный район Прилузский | G143: 1 | H143: =MAX(ISNUMBER(SEARCH({"район";"город";"образований"},F143))*({3;2;1}/1%%+G143%)) -> 30000.01
E144: Республика Мордовия | F144: Инсарский муниципальный район | G144: 1 | H144: =MAX(ISNUMBER(SEARCH({"район";"город";"образований"},F144))*({3;2;1}/1%%+G144%)) -> 30000.01
E145: Республика Мордовия | F145: Ковылкинский муниципальный район | G145: 1 | H145: =MAX(ISNUMBER(SEARCH({"район";"город";"образований"},F145))*({3;2;1}/1%%+G145%)) -> 30000.01
E146: Республика Мордовия | F146: Кочкуровский муниципальный район | G146: 1 | H146: =MAX(ISNUMBER(SEARCH({"район";"город";"образований"},F146))*({3;2;1}/1%%+G146%)) -> 30000.01
E147: Республика Мордовия | F147: Лямбирский муниципальный район | G147: 1 | H147: =MAX(ISNUMBER(SEARCH({"район";"город";"образований"},F147))*({3;2;1}/1%%+G147%)) -> 30000.01
E148: Республика Мордовия | F148: Старошайговский муниципальный район | G148: 1 | H148: =MAX(ISNUMBER(SEARCH({"район";"город";"образований"},F148))*({3;2;1}/1%%+G148%)) -> 30000.01
E149: Республика Мордовия | F149: Темниковский муниципальный район | G149: 1 | H149: =MAX(ISNUMBER(SEARCH({"район";"город";"образований"},F149))*({3;2;1}/1%%+G149%)) -> 30000.01
E150: Республика Мордовия | F150: Чамзинский муниципальный район | G150: 1 | H150: =MAX(ISNUMBER(SEARCH({"район";"город";"образований"},F150))*({3;2;1}/1%%+G150%)) -> 30000.01
E151: Республика Саха (Якутия) | F151: Нижнеколымский муниципальный район | G151: 1 | H151: =MAX(ISNUMBER(SEARCH({"район";"город";"образований"},F151))*({3;2;1}/1%%+G151%)) -> 30000.01
E152: Республика Саха (Якутия) | F152: Оймяконский муниципальный район | G152: 1 | H152: =MAX(ISNUMBER(SEARCH({"район";"город";"образований"},F152))*({3;2;1}/1%%+G152%)) -> 30000.01
E153: Республика Саха (Якутия) | F153: Усть-Майский муниципальный район | G153: 1 | H153: =MAX(ISNUMBER(SEARCH({"район";"город";"образований"},F153))*({3;2;1}/1%%+G153%)) -> 30000.01
E154: Республика Саха (Якутия) | F154: Хангаласский муниципальный район | G154: 1 | H154: =MAX(ISNUMBER(SEARCH({"район";"город";"образований"},F154))*({3;2;1}/1%%+G154%)) -> 30000.01
E155: Республика Северная Осетия - Алания | F155: Моздокский муниципальный район | G155: 1 | H155: =MAX(ISNUMBER(SEARCH({"район";"город";"образований"},F155))*({3;2;1}/1%%+G155%)) -> 30000.01
E156: Ростовская область | F156: Багаевский муниципальный район | G156: 1 | H156: =MAX(ISNUMBER(SEARCH({"район";"город";"образований"},F156))*({3;2;1}/1%%+G156%)) -> 30000.01
E157: Ростовская область | F157: Волгодонской муниципальный район | G157: 1 | H157: =MAX(ISNUMBER(SEARCH({"район";"город";"образований"},F157))*({3;2;1}/1%%+G157%)) -> 30000.01
E158: Ростовская область | F158: Сальский муниципальный район | G158: 1 | H158: =MAX(ISNUMBER(SEARCH({"район";"город";"образований"},F158))*({3;2;1}/1%%+G158%)) -> 30000.01
E159: Ростовская область | F159: Целинский муниципальный район | G159: 1 | H159: =MAX(ISNUMBER(SEARCH({"район";"город";"образований"},F159))*({3;2;1}/1%%+G159%)) -> 30000.01
E160: Самарская область | F160: Муниципальный район Большеглушицкий | G160: 1 | H160: =MAX(ISNUMBER(SEARCH({"район";"город";"образований"},F160))*({3;2;1}/1%%+G160%)) -> 30000.01
E161: Самарская область | F161: Муниципальный район Исаклинский | G161: 1 | H161: =MAX(ISNUMBER(SEARCH({"район";"город";"образований"},F161))*({3;2;1}/1%%+G161%)) -> 30000.01
E162: Самарская область | F162: Муниципальный район Кинельский | G162: 1 | H162: =MAX(ISNUMBER(SEARCH({"район";"город";"образований"},F162))*({3;2;1}/1%%+G162%)) -> 30000.01
E163: Самарская область | F163: Муниципальный район Кинель-Черкасский | G163: 1 | H163: =MAX(ISNUMBER(SEARCH({"район";"город";"образований"},F163))*({3;2;1}/1%%+G163%)) -> 30000.01
E164: Саратовская область | F164: Краснокутский муниципальный район | G164: 1 | H164: =MAX(ISNUMBER(SEARCH({"район";"город";"образований"},F164))*({3;2;1}/1%%+G164%)) -> 30000.01
E165: Саратовская область | F165: Федоровский муниципальный район | G165: 1 | H165: =MAX(ISNUMBER(SEARCH({"район";"город";"образований"},F165))*({3;2;1}/1%%+G165%)) -> 30000.01
E166: Тверская область | F166: Весьегонский муниципальный район | G166: 1 | H166: =MAX(ISNUMBER(SEARCH({"район";"город";"образований"},F166))*({3;2;1}/1%%+G166%)) -> 30000.01
E167: Тверская область | F167: Калязинский муниципальный район | G167: 1 | H167: =MAX(ISNUMBER(SEARCH({"район";"город";"образований"},F167))*({3;2;1}/1%%+G167%)) -> 30000.01
E168: Тверская область | F168: Кимрский муниципальный район | G168: 1 | H168: =MAX(ISNUMBER(SEARCH({"район";"город";"образований"},F168))*({3;2;1}/1%%+G168%)) -> 30000.01
E169: Тверская область | F169: Нелидовский муниципальный район | G169: 1 | H169: =MAX(ISNUMBER(SEARCH({"район";"город";"образований"},F169))*({3;2;1}/1%%+G169%)) -> 30000.01
E170: Томская область | F170: Муниципальный район Каргасокский | G170: 1 | H170: =MAX(ISNUMBER(SEARCH({"район";"город";"образований"},F170))*({3;2;1}/1%%+G170%)) -> 30000.01
E171: Тульская область | F171: Воловский муниципальный район | G171: 1 | H171: =MAX(ISNUMBER(SEARCH({"район";"город";"образований"},F171))*({3;2;1}/1%%+G171%)) -> 30000.01
E172: Тульская область | F172: Заокский муниципальный район | G172: 1 | H172: =MAX(ISNUMBER(SEARCH({"район";"город";"образований"},F172))*({3;2;1}/1%%+G172%)) -> 30000.01
E173: Тульская область | F173: Кимовский муниципальный район | G173: 1 | H173: =MAX(ISNUMBER(SEARCH({"район";"город";"образований"},F173))*({3;2;1}/1%%+G173%)) -> 30000.01
E174: Тюменская область | F174: Казанский муниципальный район | G174: 1 | H174: =MAX(ISNUMBER(SEARCH({"район";"город";"образований"},F174))*({3;2;1}/1%%+G174%)) -> 30000.01
E175: Тюменская область | F175: Уватский муниципальный район | G175: 1 | H175: =MAX(ISNUMBER(SEARCH({"район";"город";"образований"},F175))*({3;2;1}/1%%+G175%)) -> 30000.01
E176: Тюменская область | F176: Ярковский муниципальный район | G176: 1 | H176: =MAX(ISNUMBER(SEARCH({"район";"город";"образований"},F176))*({3;2;1}/1%%+G176%)) -> 30000.01
E177: Удмуртская Республика | F177: Малопургинский муниципальный район | G177: 1 | H177: =MAX(ISNUMBER(SEARCH({"район";"город";"образований"},F177))*({3;2;1}/1%%+G177%)) -> 30000.01
E178: Ханты-Мансийский автономный округ - Югра | F178: Кондинский муниципальный район | G178: 1 | H178: =MAX(ISNUMBER(SEARCH({"район";"город";"образований"},F178))*({3;2;1}/1%%+G178%)) -> 30000.01
E179: Ямало-Ненецкий автономный округ | F179: Надымский муниципальный район | G179: 1 | H179: =MAX(ISNUMBER(SEARCH({"район";"город";"образований"},F179))*({3;2;1}/1%%+G179%)) -> 30000.01
E180: Ямало-Ненецкий автономный округ | F180: Тазовский муниципальный район | G180: 1 | H180: =MAX(ISNUMBER(SEARCH({"район";"город";"образований"},F180))*({3;2;1}/1%%+G180%)) -> 30000.01
E181: Новосибирская область | F181: Городской округ - город Новосибирск | G181: 54 | H181: =MAX(ISNUMBER(SEARCH({"район";"город";"образований"},F181))*({3;2;1}/1%%+G181%)) -> 20000.54
E182: Республика Башкортостан | F182: Городской округ -город Уфа | G182: 52 | H182: =MAX(ISNUMBER(SEARCH({"район";"город";"образований"},F182))*({3;2;1}/1%%+G182%)) -> 20000.52
E183: Самарская область | F183: Городской округ Самара | G183: 49 | H183: =MAX(ISNUMBER(SEARCH({"район";"город";"образований"},F183))*({3;2;1}/1%%+G183%)) -> 20000.49
E184: Пензенская область | F184: Городской округ город Пенза | G184: 31 | H184: =MAX(ISNUMBER(SEARCH({"район";"город";"образований"},F184))*({3;2;1}/1%%+G184%)) -> 20000.31
E185: Хабаровский край | F185: Городской округ Город Хабаровск | G185: 28 | H185: =MAX(ISNUMBER(SEARCH({"район";"город";"образований"},F185))*({3;2;1}/1%%+G185%)) -> 20000.28
E186: Краснодарский край | F186: Городской округ - город-курорт Сочи | G186: 27 | H186: =MAX(ISNUMBER(SEARCH({"район";"город";"образований"},F186))*({3;2;1}/1%%+G186%)) -> 20000.27
E187: Иркутская область | F187: Муниципальное образование Город Иркутск | G187: 26 | H187: =MAX(ISNUMBER(SEARCH({"район";"город";"образований"},F187))*({3;2;1}/1%%+G187%)) -> 20000.26
E188: Томская область | F188: Городской округ Город Томск | G188: 19 | H188: =MAX(ISNUMBER(SEARCH({"район";"город";"образований"},F188))*({3;2;1}/1%%+G188%)) -> 20000.19
E189: Сахалинская область | F189: Городской округ Город Южно-Сахалинск | G189: 18 | H189: =MAX(ISNUMBER(SEARCH({"район";"город";"образований"},F189))*({3;2;1}/1%%+G189%)) -> 20000.18
E190: Тюменская область | F190: Городской округ город Тюмень | G190: 18 | H190: =MAX(ISNUMBER(SEARCH({"район";"город";"образований"},F190))*({3;2;1}/1%%+G190%)) -> 20000.18
E191: Ханты-Мансийский автономный округ - Югра | F191: Городской округ город Нижневартовск | G191: 17 | H191: =MAX(ISNUMBER(SEARCH({"район";"город";"образований"},F191))*({3;2;1}/1%%+G191%)) -> 20000.17
E192: Кемеровская область | F192: Городской округ - город Прокопьевск | G192: 16 | H192: =MAX(ISNUMBER(SEARCH({"район";"город";"образований"},F192))*({3;2;1}/1%%+G192%)) -> 20000.16
E193: Ямало-Ненецкий автономный округ | F193: Городской округ город Салехард | G193: 12 | H193: =MAX(ISNUMBER(SEARCH({"район";"город";"образований"},F193))*({3;2;1}/1%%+G193%)) -> 20000.12
E194: Камчатский край | F194: Петропавловск-Камчатский городской округ | G194: 11 | H194: =MAX(ISNUMBER(SEARCH({"район";"город";"образований"},F194))*({3;2;1}/1%%+G194%)) -> 20000.11
E195: Курганская область | F195: Городской округ город Курган | G195: 11 | H195: =MAX(ISNUMBER(SEARCH({"район";"город";"образований"},F195))*({3;2;1}/1%%+G195%)) -> 20000.11
E196: Республика Северная Осетия - Алания | F196: Городской округ город Владикавказ | G196: 10 | H196: =MAX(ISNUMBER(SEARCH({"район";"город";"образований"},F196))*({3;2;1}/1%%+G196%)) -> 20000.1
E197: Мурманская область | F197: Городской округ город Мурманск | G197: 9 | H197: =MAX(ISNUMBER(SEARCH({"район";"город";"образований"},F197))*({3;2;1}/1%%+G197%)) -> 20000.09
E198: Орловская область | F198: Городской округ - город Орёл | G198: 9 | H198: =MAX(ISNUMBER(SEARCH({"район";"город";"образований"},F198))*({3;2;1}/1%%+G198%)) -> 20000.09
E199: Еврейская автономная область | F199: Городской округ Город Биробиджан | G199: 8 | H199: =MAX(ISNUMBER(SEARCH({"район";"город";"образований"},F199))*({3;2;1}/1%%+G199%)) -> 20000.08
E200: Костромская область | F200: Городской округ город Кострома | G200: 8 | H200: =MAX(ISNUMBER(SEARCH({"район";"город";"образований"},F200))*({3;2;1}/1%%+G200%)) -> 20000.08
E201: Республика Бурятия | F201: Городской округ- город Северобайкальск | G201: 7 | H201: =MAX(ISNUMBER(SEARCH({"район";"город";"образований"},F201))*({3;2;1}/1%%+G201%)) -> 20000.07
E202: Архангельская область | F202: Городской округ - город Северодвинск | G202: 6 | H202: =MAX(ISNUMBER(SEARCH({"район";"город";"образований"},F202))*({3;2;1}/1%%+G202%)) -> 20000.06
E203: Московская область | F203: Городской округ Дзержинский | G203: 6 | H203: =MAX(ISNUMBER(SEARCH({"район";"город";"образований"},F203))*({3;2;1}/1%%+G203%)) -> 20000.06
E204: Московская область | F204: Городской округ Железнодорожный | G204: 5 | H204: =MAX(ISNUMBER(SEARCH({"район";"город";"образований"},F204))*({3;2;1}/1%%+G204%)) -> 20000.05
E205: Московская область | F205: Городской округ Королёв | G205: 5 | H205: =MAX(ISNUMBER(SEARCH({"район";"город";"образований"},F205))*({3;2;1}/1%%+G205%)) -> 20000.05
... 110 more rows
